Cogmind - Beta 16 @@@ ROGUE MODE // 2025.11.09 @ 22:19:02 Player: ChromeKnight Result: Destroyed by P-60 Hacker with Shock Rifle Performance ------------- Evolutions (0) 0 Regions Visited (3) 600 Robots Destroyed (19) 95 Value Destroyed (429) 429 Prototype IDs (0) 0 Alien Tech Used (0) 0 Bonus (0) 0 TOTAL SCORE: 1124 Bonus ------- None Cogmind --------- Core Integrity 0/250 Matter 252/300 Energy 99/100 System Corruption 1% Temperature Cool (45) Movement Rolling (115) Ox1 Location -8/Recycling Parts ------- > --- POWER (1) -------- (None) > --- PROPULSION (2) --- Compact Wheel Compact Wheel > --- UTILITY (2) ------ Large Storage Unit Improved Light Armor Plating > --- WEAPON (2) ------- Assault Cannon Flak Cannon > --- INVENTORY (15) --- VSS Leg Improved Heat Sink Small Storage Unit Improved Sensor Array Improved Sensor Array Makeshift Light Armor Plating Small Laser Subdweller Laser Battle Cannon Grenade Launcher Grenade Launcher Missile Launcher Peak State ------------ > --- POWER ------------ Ion Engine > --- PROPULSION ------- Compact Wheel Compact Wheel > --- UTILITY ---------- Large Storage Unit Improved Light Armor Plating > --- WEAPON ----------- Assault Cannon Flak Cannon > --- INVENTORY -------- Improved Heat Sink Small Storage Unit Improved Sensor Array Improved Sensor Array Makeshift Light Armor Plating Small Laser Subdweller Laser Battle Cannon Grenade Launcher Grenade Launcher Missile Launcher [Rating: 15] Favorites ----------- Power Ion Engine Engine Ion Engine Propulsion Light Treads Treads Light Treads Wheel Compact Wheel Utility Large Storage Unit Device Heat Sink Storage Large Storage Unit Protection Improved Light Armor Plating Weapon Small Laser Energy Gun Small Laser Ballistic Cannon Flak Cannon Launcher Grenade Launcher Build | -11 -10 -10 -8 ------- Run | Yrd Mat Sub Rec Slots Evolved . | . . . . Power . | . . . . Propulsion . | . . . . Utility . | . . . . Weapon . | . . . . Parts Attached 18 | 6 3 4 5 Power 2 | 1 . 1 . Engine 2 | 1 . 1 . Core . | . . . . Reactor . | . . . . Propulsion 4 | 2 . . 2 Treads 2 | 2 . . . Leg . | . . . . Wheel 2 | . . . 2 Hover . | . . . . Flight . | . . . . Utility 5 | 1 3 . 1 Device 2 | . 2 . . Storage 2 | 1 1 . . Processor . | . . . . Hackware . | . . . . Protection 1 | . . . 1 Artifact . | . . . . Weapon 7 | 2 . 3 2 Energy Gun 4 | 2 . 2 . Energy Cannon . | . . . . Ballistic Gun . | . . . . Ballistic Cannon 2 | . . . 2 Launcher 1 | . . 1 . Special Weapon . | . . . . Impact Weapon . | . . . . Slashing Weapon . | . . . . Piercing Weapon . | . . . . Special Melee Weapon . | . . . . Unidentified Prototypes . | . . . . Parts Lost 5 | . . 3 2 Power 1 | . . . 1 Propulsion 2 | . . 1 1 Utility . | . . . . Weapon 2 | . . 2 . Highest Loss Streak 2 | . . 2 1 To Critical Strikes . | . . . . Average Backups 7 | . 3 9 10 Power . | . 1 . . Propulsion . | . . . . Utility 2 | . . 2 4 Weapon 4 | . 2 5 5 Tool/Special . | . . . . Unused Backups 10 | . . 1 9 Power . | . . . . Propulsion 1 | . . . 1 Utility 4 | . . 1 3 Weapon 5 | . . . 5 Tool/Special . | . . . . Average Slot Usage (%) 90 | . 91 96 83 Engine 13 | . 14 14 13 Treads 17 | . 28 25 1 Wheel 3 | . . . 10 Device 10 | . 5 14 10 Storage 14 | . 14 14 14 Protection 1 | . . . 3 Energy Gun 25 | . 28 27 21 Ballistic Cannon 2 | . . . 6 Peak Build Rating 15 | 6 9 9 15 Average Rating 7 | 4 6 7 9 On Entrance 5 | . 6 8 7 Avg Prop Armor Cover (%) . | . . . . Naked Turns . | . . . . Heaviest Build 39 | 12 28 28 39 Greatest Support 40 | 40 40 40 32 Greatest Overweight (x) 9 | . . 1 9 Average Overweight (x) . | . . . 2 Largest Inventory Capacity 15 | 8 15 15 15 Average Capacity 13 | 6 8 15 15 Most Carried 12 | 2 8 11 12 Average Carried 7 | . 3 9 10 Final Capacity 15 | 8 15 15 15 Final Carried 12 | 2 8 8 12 Class Distribution -------------------- 95% | Mutant 4% | Scavenger-Mutant Dominant Class ---------------- Mutant | -10/Materials Mutant | -10/Subcaves Mutant | -8/Recycling Resources | -11 -10 -10 -8 ----------- Run | Yrd Mat Sub Rec Matter Collected 390 | 215 65 60 50 Remotely . | . . . . Salvage Created 821 | . 98 284 439 Parts 36 | . 6 21 9 Haulers Intercepted . | . . . . Recyclers Shooed 1 | . . . 1 Parts Field Recycled . | . . . . Retrieved Matter . | . . . . Parts Self-Destructed 14 | . . 14 . Prevented . | . . . . Parts Restored . | . . . . Kills | -11 -10 -10 -8 ------- Run | Yrd Mat Sub Rec Combat Hostiles Destroyed 13 | . 2 9 2 Guns 10 | . 2 7 1 Cannons 1 | . . . 1 AOE 2 | . . 2 . Classes Destroyed 6 | . 1 4 1 Recycler 4 | . . . 4 Turret 2 | . . 2 . Swarmer 6 | . . 5 1 Grunt 3 | . 2 1 . Sentry 2 | . . 1 1 Subdweller 2 | . . 2 . Best Kill Streak 4 | . 2 4 1 Combat Bots Only 4 | . 2 4 1 Max Kills in Single Turn 2 | . 1 2 1 Gunslinging . | . . . . Exploded 2 | . . 2 . Melee . | . . . . Uniques/NPCs Destroyed . | . . . . Combat | -11 -10 -10 -8 -------- Run | Yrd Mat Sub Rec Hostile Shots Fired 179 | . 6 149 24 Missed 63 | . 2 58 3 Hits 116 | . 4 91 21 Projectile 116 | . 4 91 21 Critical Strikes 3 | . 1 1 1 Damage Taken 1036 | . 55 689 292 Core 258 | . 17 149 92 Absorbed by Shields . | . . . . Core Remaining (%) 100 | 100 . . . Volleys Fired 70 | . 5 37 28 Largest 2 | . 2 2 2 Hottest 80 | . 80 80 80 Shots Fired 135 | . 10 73 52 Gun 124 | . 10 72 42 Cannon 10 | . . . 10 Launcher 1 | . . 1 . Special . | . . . . Kinetic 10 | . . . 10 Thermal 124 | . 10 72 42 Explosive 1 | . . 1 . Electromagnetic . | . . . . Robot Hit Streak 7 | . 4 7 7 Robot Miss Streak 7 | . 1 2 7 Penetration Max . | . . . . Secondary Targets . | . . . . Shots Hit Robots 94 | . 7 49 38 Core Hits 44 | . 5 23 16 Critical Kills . | . . . . Critical Parts Destroyed . | . . . . Critical Strikes . | . . . . Melee Attacks . | . . . . Impact . | . . . . Slashing . | . . . . Piercing . | . . . . Sneak Attacks . | . . . . Combat Hostiles . | . . . . Follow-up Attacks . | . . . . Damage Inflicted 1234 | . 77 646 511 Guns 951 | . 77 532 342 Cannons 169 | . . . 169 Explosions 114 | . . 114 . Melee . | . . . . Ramming . | . . . . Kinetic 169 | . . . 169 Thermal 951 | . 77 532 342 Explosive 114 | . . 114 . Electromagnetic . | . . . . Impact . | . . . . Slashing . | . . . . Piercing . | . . . . Highest Corruption 1 | . . . 1 Average Corruption 1 | . . . 1 Corruption Purged . | . . . . Corruption Blocked . | . . . . Overload Shots . | . . . . Overflow Damage 11 | . . . 11 Projectiles 11 | . . . 11 Explosions . | . . . . Melee . | . . . . Knockbacks . | . . . . Impact . | . . . . Kinetic . | . . . . Secondary . | . . . . Self-Inflicted Damage 13 | . . 13 . Shots 1 | . . 1 . Rammed . | . . . . Targets Rammed . | . . . . Kicked . | . . . . Crushed . | . . . . Highest Temperature 138 | . 138 . 45 Average Temperature 60 | . 76 . 25 Received Heat Transfer 444 | . 48 351 45 Siege Activations . | . . . . Martial Activations . | . . . . Shielding Activations . | . . . . Robots Disrupted . | . . . . Combat Hostiles . | . . . . Robots Corrupted . | . . . . Combat Hostiles . | . . . . Parts Fried . | . . . . Impact Corruptions . | . . . . Robots Melted . | . . . . Combat Hostiles . | . . . . Parts Melted 3 | . . 1 2 Heat Transferred 2175 | . 175 1225 775 Parts Sabotaged . | . . . . Parts Stolen . | . . . . Parts Stripped . | . . . . Power Chain Reactions . | . . . . Alert | -11 -10 -10 -8 ------- Run | Yrd Mat Sub Rec Maximum Alert Level . | . . . . Low Security (%) 100 | 100 100 . 100 Level 1 . | . . . . Level 2 . | . . . . Level 3 . | . . . . Level 4 . | . . . . Level 5 . | . . . . High Security . | . . . . Max Security . | . . . . Peak Influence 63 | . 50 . 63 Initial 63 | . . . 63 Average 9 | . 4 . 13 Influence Increases 502 | . 50 285 167 Destroy 0b10 Robot/C 260 | . 40 180 40 Destroy 0b10 Robot/NC 20 | . . . 20 Destroy Leader 10 | . 10 . . Successful Hack 14 | . . . 14 Select Force Hacks 90 | . . . 90 Destroy Structure 3 | . . . 3 Lose Combat Pursuer 105 | . . 105 . Influence Decreases 476 | . 50 152 274 Entered New Map 70 | . . . 70 Time Decay 366 | . 50 132 184 Lost Part 40 | . . 20 20 Squads Dispatched . | . . . . Investigation . | . . . . Extermination . | . . . . Reinforcement . | . . . . Assault . | . . . . Garrison . | . . . . Intercept . | . . . . Searches Triggered . | . . . . Construction Impeded . | . . . . Haulers Reinforced . | . . . . Active Scanning Responses . | . . . . Cargo Convoy Interrupts . | . . . . Stealth | -11 -10 -10 -8 --------- Run | Yrd Mat Sub Rec Distress Signals . | . . . . Communications Jammed . | . . . . Distress Signals . | . . . . Times Spotted 29 | . 7 18 4 Peak Tracking Total 6 | . 4 6 2 Tactical Retreats 3 | . . 3 . Traps | -11 -10 -10 -8 ------- Run | Yrd Mat Sub Rec Traps Triggered . | . . . . Indirectly . | . . . . Trap Hack Attempts . | . . . . Triggered . | . . . . Disarmed . | . . . . Reprogrammed . | . . . . Reused . | . . . . Traps Extracted . | . . . . Installed . | . . . . Triggered . | . . . . Machines | -11 -10 -10 -8 ---------- Run | Yrd Mat Sub Rec Machines Disabled . | . . . . Max in Single Turn . | . . . . Machines Repaired . | . . . . Machines Dismantled . | . . . . Machines Sabotaged . | . . . . Overloaded Fab Kills . | . . . . Hacking | -11 -10 -10 -8 --------- Run | Yrd Mat Sub Rec Machines Accessed 7 | . . . 7 Terminals 4 | . . . 4 Fabricators . | . . . . Repair Stations . | . . . . Recycling Units 3 | . . . 3 Scanalyzers . | . . . . Garrison Access . | . . . . Total Hacks 11 | . . . 11 Successful 7 | . . . 7 Failed 4 | . . . 4 Catastrophic . | . . . . Database Lockouts . | . . . . Manual 10 | . . . 10 Terminals 7 | . . . 7 Fabricators . | . . . . Repair Stations . | . . . . Recycling Units 4 | . . . 4 Scanalyzers . | . . . . Garrison Access . | . . . . Terminal Hacks . | . . . . Fabricator Hacks . | . . . . Repair Station Hacks . | . . . . Recycling Unit Hacks 1 | . . . 1 Retrieve Matter 1 | . . . 1 Scanalyzer . | . . . . Garrison Access Hacks . | . . . . Unauthorized Hacks 6 | . . . 6 Terminals 3 | . . . 3 Skim 3 | . . . 3 Fabricators . | . . . . Repair Stations . | . . . . Recycling Units 3 | . . . 3 Tunnel 3 | . . . 3 Scanalyzers . | . . . . Garrison Access . | . . . . Data Cores Recovered . | . . . . Used . | . . . . Hacking Detections 4 | . . . 4 Full Trace Events . | . . . . Feedback Events . | . . . . Feedback Blocked . | . . . . Robot Schematics Acquired . | . . . . Robots Built . | . . . . Authchips . | . . . . Time . | . . . . Total Robot Build Rating . | . . . . Part Schematics Acquired . | . . . . Parts Built . | . . . . Authchips . | . . . . Time . | . . . . Total Part Build Rating . | . . . . Part Studies Acquired . | . . . . Parts Repaired . | . . . . Time . | . . . . Parts Recycled . | . . . . Recycled Matter . | . . . . Retrieved Matter . | . . . . Retrieved Components . | . . . . Parts Scanalyzed . | . . . . Part Schematics Acquired . | . . . . Parts Damaged . | . . . . Bothacking | -11 -10 -10 -8 ------------ Run | Yrd Mat Sub Rec Used RIF Installer . | . . . . Robots Hacked . | . . . . Non-combat . | . . . . Combat . | . . . . Robot Hacks Applied . | . . . . Relay Couplers Released . | . . . . Fabnet Peak Effective % . | . . . . Robots Rewired . | . . . . Allies Hacked . | . . . . Hacks Repelled . | . . . . Allies | -11 -10 -10 -8 -------- Run | Yrd Mat Sub Rec Total Allies . | . . . . Largest Group . | . . . . Highest-Rated Group . | . . . . Highest-Rated Ally . | . . . . Total Orders . | . . . . Ally Attacks . | . . . . Total Damage . | . . . . Kills . | . . . . Allies Corrupted . | . . . . Allies Melted . | . . . . Intel | -11 -10 -10 -8 ------- Run | Yrd Mat Sub Rec Active Infowar (turns) . | . . . . Robot Analysis Total . | . . . . Derelict Logs Recovered . | . . . . Drone Launches . | . . . . Drone Recoveries . | . . . . Exploration | -11 -10 -10 -8 ------------- Run | Yrd Mat Sub Rec Turns Passed 1930 | 66 548 663 653 Spaces Moved 781 | 37 146 304 294 Core 56 | 3 . . 53 Treads 511 | 34 146 304 27 Legs . | . . . . Wheels 214 | . . . 214 Hover . | . . . . Flight . | . . . . Fastest Speed 50 | 50 160 160 100 Average Speed 175 | 151 160 170 190 Slowest Speed 500 | 160 160 240 500 Overloaded Moves . | . . . . Propulsion Burnouts . | . . . . Robots Hopped . | . . . . Potential Cave-ins . | . . . . Cave-ins Triggered . | . . . . Exploration Rate (%) 24 | 5 21 26 45 Regions Visited 3 Branch Regions 2 Pre-discovered Areas 4 | . . 1 3 Known Exits Taken . | . . . . Unknown Exits Taken 3 | 1 1 1 . Scrap Searched . | . . . . Spaces Dug . | . . . . Terrain Destroyed 7 | . . 5 2 Melee . | . . . . Projectile 2 | . . . 2 AOE 5 | . . 5 . Terrain Rammed . | . . . . Walls Destroyed . | . . . . Machines Disabled . | . . . . Actions | -11 -10 -10 -8 --------- Run | Yrd Mat Sub Rec Total 1202 | 44 449 375 334 Wait 315 | . 291 24 . Move 778 | 36 145 303 294 Hop . | . . . . Pick Up 15 | 2 5 4 4 Fast Attach 12 | 6 1 . 5 Attach 2 | . . 2 . Detach . | . . . . Swap 5 | . 2 3 . Drop 5 | . . 2 3 Fire 70 | . 5 37 28 Melee . | . . . . Ram . | . . . . Kick . | . . . . Crush . | . . . . Escape Stasis . | . . . . Rewire . | . . . . Trap . | . . . . Miscellaneous . | . . . . Route ------- -11/Scrapyard -10/Materials (discovered 2 exits: [*Min] / [*Sub]) -10/Subcaves -8/Recycling History --------- Turn | Location | Event 9 | -11/Scrapyard | Discovered new exit (range 15) 67 | -11/Scrapyard | Entered Materials 303 | -10/Materials | Discovered new exit (range 9) 315 | -10/Materials | Build established: Mutant 524 | -10/Materials | Discovered new exit (range 13) 615 | -10/Materials | Entered Subcaves 616 | -10/Subcaves | Approached by a straggling Scientist 984 | -10/Subcaves | Learned location of Zion (-6) 984 | -10/Subcaves | Met a Zionite searching for "candidates" 1007 | -10/Subcaves | Shifting Twisted Machinery released Sub. Laser 1052 | -10/Subcaves | Shifting Twisted Machinery released Mak. Light Armor Plating 1133 | -10/Subcaves | Discovered new exit (range 14) 1146 | -10/Subcaves | Core integrity fell below 50% 1278 | -10/Subcaves | Entered Recycling 1929 | -8/Recycling | Core integrity fell below 20% 1931 | -8/Recycling | Destroyed by P-60 Hacker with Shock Rifle Last Messages --------------- Trojan loaded successfully. Testing... Terminal linked with 1 system. Please expand to 3 more systems! 01854_ Connecting with Terminal... >>Trojan(Skim) Trojan loaded successfully. Testing... Terminal linked with 2 systems. Please expand to 2 more systems! 01885_ Connecting with Recycling Unit... >>Force(Tunnel) DISCOVERED[-2/Research] 01895_ Connecting with Terminal... 01909_ Destroyed Lgt. Ion Engine. 01909_ S-10 Pest springs to life. 01913_ Destroyed Lgt. Nuclear Core. 01915_ S-10 Pest destroyed. 01917_ P-60 Hacker springs to life. 01928_ Ion Engine destroyed. Map ----- +----------------------------------------------------+ | ?????????????????????????????????????????????????? | | ###??????????????????????????????????????????????? | | ?????????????????????????????????????????????? | | ?????????????????????????????????????????????? | | ?????????????????????????????????????????????? | | ###??????????????????????????????????????????????? | | ?????????????????????????????????????????????????? | | ?????????????????????????????????????????????????? | | ??????????????????#############??????????????????? | | ??????????????????# #?????????????????? | | ??????????????????# #?????????????????? | | ??????????????????# ! !#?#?#?????????????? | | ??????????????????# ] [ #? ? #???????????? | | ??????????????????#!! #? ????????????? | | ??????????????????# % +? T ????????????? | | ??????????????????# ! #? ????????????? | | ??????????????????# #? ????????????? | | ??????????????????# %!/ #? #????????????? | | ??????????????????# ! %## #????????????? | | ??????????????????# %## #????????????? | | ??????????????????# # #????????????? | | ??????????????????###+##/##"##??# ###??????????? | | ????????????????????# #???#### ""#??????????? | | ????????????????????# #???#T"# Y"#??????????? | | ????????????????????# p###;#%"# ""#??????????? | | ????????????????????# @ Y #????????????? | | ????????????????????#### ######## ###??????????? | | #??????????????????????#+#####??# !!#??????????? | | +??????????????????????# ?# !!#??????????? | | #??????????????????##??# ?# !!#??????????? | | #???????????????? ??# # ###??????????? | | #??????????????? ??# # ""#??????????? | | #???????????????? #?# + Y"#??????????? | | #???????????????? ?+ # ""#??????????? | | #????????????????? ?# # ###??????????? | | #????????????????? ## ?# #????????????? | | #?????????????????# # ?# #????????????? | | ??????????##??????# ##### ##### #############? | | ????###### ######## #???##??#!! # T """"" #? | | ????# ## #???????#! # """"" ## | | ????# ## #???????#!! # """"" "# | | ????# ## ######??### # T# | | ????# ## ## !!#????# + "# | | ????# # #!!!###### # ## | | ##### # T + #? | | + + "" #############? | | # # #????????????? | | # # ###########+##########????? | | + #######?# % ! [ #????? | | ## #???????# ! ! #????? | +----------------------------------------------------+ Best States ------------- Heat Dissipation 39 Energy Generation 10 Energy Capacity 250 Matter Stores 300 Matter Capacity 300 Sight Range 16 Terrain Scan Density 10 Armor Coverage 150 Evasion (%) 40 Recoil Reduction 2 Item Schematics ----------------- None Robot Schematics ------------------ None Fabricated ------------ Nothing Repaired ---------- Nothing Studied --------- None Alien Tech Used ----------------- None Achievements -------------- None Challenges ------------ None Game ------ Seed PiercelightCentriumShield Manual? 0 Play Time 00:08:32 Cumulative 526.3 hours Start 2025.11.09 @ 22:10:30 End 2025.11.09 @ 22:19:02 Sessions 1 Manual Loads 0 Difficulty Rogue Special Mode None Game No. 859 Rogue 704 Adventurer 148 Explorer 7 Win Type - Total 26 Types 20/1/4/1/0/0/0/0/0/0 Lore% 77 Gallery% 79 Achievement% 64 Wizard Run 0 Options --------- Layout 1 ASCII 0 Keyboard 0 Movement Numpad Keybinds 0 Fullscreen 2 Font 24/Smallcaps Map View 50x40 Zoom Use 0% Tactical HUD 1 Map Filters NONE Filters NONE Steam 1 RUN: f6e5e11d-2661-4c02-9822-ac40ed2ea923